fUST/lending_fUST_20241220
["ID","MTS","AMOUNT","RATE_DAILY","PERIOD"]
[346046669,1734658251563,-500.0,0.00021917,6]
[346046670,1734658251572,-618.562907,0.00021917,2]
[346046671,1734658251581,-618.562907,0.00021917,2]
[346046672,1734658251591,-618.562907,0.00021917,2]
[346046673,1734658251600,-618.562907,0.00021917,2]
[346046674,1734658251609,-618.562907,0.00021917,2]
[346046675,1734658251619,-500.57,0.00021917,6]
[346046676,1734658251628,-618.562907,0.00021917,2]
[346046677,1734658251638,-618.562907,0.00021917,2]
[346046678,1734658251647,-618.562907,0.00021917,2]
[346046679,1734658251656,-618.562907,0.00021917,2]
[346046680,1734658251666,-618.562907,0.00021917,2]
[346046681,1734658251675,-618.562907,0.00021917,2]
[346046682,1734658251685,-618.562907,0.00021917,2]
[346046683,1734658251696,-618.562907,0.00021917,2]
[346046684,1734658251705,-618.562907,0.00021917,2]
[346046685,1734658251714,-618.562907,0.00021917,2]
[346046686,1734658251724,-500.0,0.00021917,6]
[346046687,1734658251733,-500.0,0.00021917,6]
[346046688,1734658251743,-618.562907,0.00021917,2]
[346046689,1734658251752,-500.0,0.00021917,6]
[346046690,1734658251761,-618.562907,0.00021917,2]
[346046691,1734658251771,-618.562907,0.00021917,2]
[346046692,1734658251780,-618.562907,0.00021917,2]
[346046693,1734658251789,-618.56290898,0.00021917,2]
[346046694,1734658251799,-500.0,0.00021917,6]
[346046695,1734658251808,-500.0,0.00021917,6]
[346046696,1734658251817,-500.0,0.00021917,6]
[346046697,1734658251826,-500.0,0.00021917,6]
[346046698,1734658251836,-500.0,0.00021917,6]
[346046699,1734658251845,-151.0,0.00021917,2]
[346046700,1734658251854,-500.0,0.00021917,6]
[346046701,1734658251863,-500.0,0.00021917,6]
[346046702,1734658251873,-151.0,0.00021917,2]
[346046703,1734658251882,-151.0,0.00021917,2]
[346046704,1734658251891,-151.0,0.00021917,2]
[346046705,1734658251901,-151.0,0.00021917,2]
[346046706,1734658251910,-262.240145,0.00021917,2]
[346046707,1734658251919,-527.80000908,0.00021917,6]
[346046708,1734658251928,-347.76069317,0.00021917,6]
[346046709,1734658252174,-152.23930683,0.00021917,6]
[346046710,1734658252184,-729.45875956,0.00021917,6]
[346046711,1734658252199,-380.17124044,0.00021917,6]
[346046712,1734658252208,-119.82875956,0.00021917,6]
[346046714,1734658639909,-500.0,0.00017387,2]
[346046715,1734658639932,-500.39823209,0.00019579,2]
[346046718,1734658746920,250.0,0.00025,120]
[346046719,1734658777304,250.0,0.00025,120]
[346046721,1734658853221,162.840828,0.00013973,2]
[346046727,1734659379466,20118.159681,0.00025,120]
[346046749,1734659432707,-158.87331695,0.00020371,2]
[346046750,1734659432716,-2561.684794,0.00020422,2]
[346046845,1734659438885,-8065.2952481,0.00020422,2]
[346046847,1734659438896,-3923.0764302,0.00020471,2]
[346046849,1734659438908,-160.0,0.00020509,3]
[346046851,1734659438918,-292.686722,0.00020573,2]
[346046853,1734659438930,-300.0,0.00020727,2]
[346046855,1734659438940,-300.0,0.00020727,2]
[346046857,1734659438952,-573.153,0.0002082,2]
[346046859,1734659438963,-3590.207905,0.00020828,11]
[346046861,1734659438974,-174.175,0.00021187,2]
[346046863,1734659438985,-467.405052,0.00021278,2]
[346046865,1734659438996,-160.0,0.00021575,4]
[346046867,1734659439007,-221.0,0.0002161,5]
[346046869,1734659439018,-162.840828,0.00021661,2]
[346046871,1734659439030,-354.5420146,0.00021697,2]
[346046873,1734659439040,-1223.57109066,0.00021717,2]
[346046875,1734659439052,-959.5852498,0.000218,2]
[346046877,1734659439063,-959.58524977,0.000218,2]
[346046879,1734659439074,-959.58524977,0.000218,2]
[346046882,1734659439085,-959.58524977,0.000218,2]
[346046883,1734659439097,-4593.53849807,0.00021816,2]
[346046886,1734659439109,-666.0,0.00021817,2]
[346046888,1734659439120,-3696.95753541,0.00021817,7]
[346046890,1734659439131,-151.0,0.0002188,2]
[346046892,1734659439142,-179.43888887,0.0002188,2]
[346046894,1734659439155,-10000.0,0.000219,7]
[346046896,1734659439165,-731028.337528,0.000219,2]
[346046898,1734659439177,-213.7342547,0.00021916,2]
[346046900,1734659439189,-500.0,0.00021916,2]
[346046903,1734659439201,-645.49629611,0.00021916,2]
[346046905,1734659439212,-452.4991509,0.00021916,2]
[346046907,1734659439222,-457.88476683,0.00021916,2]
[346046909,1734659439233,-500.0,0.00021916,2]
[346046910,1734659439243,-500.0,0.00021916,2]
[346046912,1734659439254,-500.0,0.00021916,2]
[346046915,1734659439266,-500.0,0.00021916,2]
[346046917,1734659439277,-517.92747989,0.00021916,2]
[346046919,1734659439286,-500.0,0.00021916,2]
[346046921,1734659439296,-500.0,0.00021916,2]
[346046923,1734659439308,-500.0,0.00021916,2]
[346046925,1734659439317,-500.0,0.00021916,2]
[346046926,1734659439326,-500.0,0.00021916,2]
[346046928,1734659439337,-500.0,0.00021916,2]
[346046930,1734659439346,-500.0,0.00021916,2]
[346046932,1734659439356,-500.0,0.00021916,2]
[346046934,1734659439365,-226.64296178,0.00021916,2]
[346046936,1734659439376,-500.0,0.00021916,2]
[346046938,1734659439385,-500.0,0.00021916,2]
[346046940,1734659439394,-500.0,0.00021916,2]
[346046942,1734659439404,-500.0,0.00021916,2]
[346046975,1734659439721,-500.0,0.00021916,2]
[346046979,1734659439747,-500.0,0.00021916,2]
[346046981,1734659439761,-502.55672187,0.00021916,2]
[346046983,1734659439771,-11156.12861342,0.00021917,2]
[346046985,1734659439780,-3120.29620008,0.00021917,2]
[346046987,1734659439790,-500.0,0.00021917,6]
[346046989,1734659439800,-500.0,0.00021917,6]
[346046991,1734659439810,-500.0,0.00021917,6]
[346046993,1734659439819,-500.0,0.00021917,6]
[346046994,1734659439828,-500.0,0.00021917,6]
[346046996,1734659439837,-500.0,0.00021917,6]
[346046998,1734659439847,-500.0,0.00021917,6]
[346047000,1734659439856,-504.70337052,0.00021917,6]
[346047002,1734659439866,-500.0,0.00021917,6]
[346047004,1734659439875,-247.14830079,0.00021917,6]
[346047006,1734659439885,-564.44074346,0.00021917,6]
[346047008,1734659439895,-457.26577289,0.00021917,6]
[346047010,1734659439904,-500.0,0.00021917,6]
[346047012,1734659439915,-500.0,0.00021917,6]
[346047014,1734659439924,-500.0,0.00021917,2]
[346047016,1734659439933,-500.0,0.00021917,2]
[346047018,1734659439942,-176.91175219,0.00021917,2]
[346047020,1734659439951,-500.0,0.00021917,2]
[346047021,1734659439961,-500.0,0.00021917,2]
[346047023,1734659439970,-500.0,0.00021917,2]
[346047025,1734659439980,-500.0,0.00021917,2]
[346047027,1734659439989,-270.88703193,0.00021917,2]
[346047029,1734659439999,-460.92762151,0.00021917,2]
[346047031,1734659440008,-500.0,0.00021917,6]
[346047033,1734659440017,-501.8832034,0.00021917,6]
[346047035,1734659440027,-500.0,0.00021917,6]
[346047037,1734659440036,-500.0,0.00021917,6]
[346047039,1734659440045,-500.0,0.00021917,6]
[346047041,1734659440055,-247.51956283,0.00021917,6]
[346047043,1734659440064,-500.0,0.00021917,6]
[346047045,1734659440073,-500.0,0.00021917,6]
[346047047,1734659440082,-500.0,0.00021917,6]
[346047049,1734659440091,-503.13857294,0.00021917,6]
[346047050,1734659440099,-500.0,0.00021917,6]
[346047052,1734659440109,-500.0,0.00021917,6]
[346047054,1734659440118,-500.0,0.00021917,6]
[346047056,1734659440127,-500.0,0.00021917,6]
[346047058,1734659440136,-500.0,0.00021917,6]
[346047060,1734659440145,-500.0,0.00021917,6]
[346047062,1734659440155,-500.0,0.00021917,6]
[346047064,1734659440165,-443.17710767,0.00021917,6]
[346047066,1734659440174,-500.0,0.00021917,6]
[346047068,1734659440183,-500.0,0.00021917,6]
[346047070,1734659440192,-500.0,0.00021917,6]
[346047071,1734659440201,-500.0,0.00021917,6]
[346047073,1734659440210,-488.72527275,0.00021917,6]
[346047075,1734659440222,-594.88,0.00021917,6]
[346047077,1734659440231,-500.0,0.00021917,6]
[346047079,1734659440240,-500.0,0.00021917,6]
[346047081,1734659440250,-256097.49513902,0.00021917,2]
[346047083,1734659440259,-500.0,0.00021917,6]
[346047084,1734659440268,-500.0,0.00021917,6]
[346047085,1734659440277,-500.0,0.00021917,6]
[346047086,1734659440287,-500.0,0.00021917,6]
[346047087,1734659440296,-500.0,0.00021917,6]
[346047088,1734659440310,-500.0,0.00021917,6]
[346047089,1734659440320,-506.27962463,0.00021917,6]
[346047090,1734659440329,-500.0,0.00021917,6]
[346047091,1734659440339,-500.0,0.00021917,6]
[346047092,1734659440348,-500.0,0.00021917,2]
[346047093,1734659440358,-619.3,0.00021917,6]
[346047094,1734659440367,-500.0,0.00021917,6]
[346047095,1734659440378,-500.0,0.00021917,6]
[346047096,1734659440387,-556.17,0.00021917,6]
[346047097,1734659440397,-500.0,0.00021917,6]
[346047098,1734659440407,-508.03460261,0.00021917,6]
[346047099,1734659440417,-500.0,0.00021917,6]
[346047100,1734659440427,-500.0,0.00021917,6]
[346047101,1734659440437,-500.0,0.00021917,6]
[346047102,1734659440446,-500.0,0.00021917,6]
[346047103,1734659440455,-500.0,0.00021917,6]
[346047104,1734659440465,-500.0,0.00021917,6]
[346047106,1734659440474,-500.0,0.00021917,6]
[346047108,1734659440484,-500.0,0.00021917,6]
[346047110,1734659440493,-508.79193089,0.00021917,6]
[346047112,1734659440502,-280.76598859,0.00021917,6]
[346047114,1734659440512,-506.97935066,0.00021917,6]
[346047116,1734659440522,-500.0,0.00021917,6]
[346047118,1734659440531,-500.0,0.00021917,6]
[346047120,1734659440541,-500.0,0.00021917,6]
[346047122,1734659440549,-500.0,0.00021917,6]
[346047124,1734659440558,-500.0,0.00021917,6]
[346047126,1734659440567,-423.68520109,0.00021917,6]
[346047128,1734659440577,-503.34937883,0.00021917,6]
[346047130,1734659440587,-500.0,0.00021917,6]
[346047132,1734659440596,-500.0,0.00021917,6]
[346047134,1734659440605,-504.7866269,0.00021917,6]
[346047136,1734659440614,-505.20289975,0.00021917,6]
[346047138,1734659440623,-500.0,0.00021917,6]
[346047140,1734659440632,-500.0,0.00021917,6]
[346047142,1734659440641,-500.0,0.00021917,6]
[346047144,1734659440650,-502.380696,0.00021917,6]
[346047146,1734659440660,-500.0,0.00021917,6]
[346047148,1734659440669,-504.14910242,0.00021917,6]
[346047150,1734659440678,-500.0,0.00021917,6]
[346047152,1734659440687,-500.0,0.00021917,6]
[346047154,1734659440696,-500.0,0.00021917,6]
[346047156,1734659440705,-500.0,0.00021917,6]
[346047158,1734659440713,-500.36464272,0.00021917,6]
[346047160,1734659440722,-151.0,0.00021917,2]
[346047162,1734659440731,-151.811134,0.00021917,2]
[346047164,1734659440741,-500.0,0.00021917,6]
[346047166,1734659440751,-500.0,0.00021917,6]
[346047168,1734659440760,-500.0,0.00021917,6]
[346047170,1734659440769,-571.62760986,0.00021917,6]
[346047172,1734659440778,-500.0,0.00021917,6]
[346047174,1734659440787,-500.0,0.00021917,6]
[346047176,1734659440797,-500.0,0.00021917,6]
[346047178,1734659440807,-500.0,0.00021917,6]
[346047180,1734659440816,-500.0,0.00021917,6]
[346047182,1734659440826,-500.0,0.00021917,6]
[346047184,1734659440835,-500.0,0.00021917,6]
[346047186,1734659440844,-500.0,0.00021917,6]
[346047188,1734659440854,-500.0,0.00021917,6]
[346047190,1734659440863,-501.98974557,0.00021917,6]
[346047192,1734659440872,-500.0,0.00021917,6]
[346047194,1734659440882,-500.0,0.00021917,6]
[346047196,1734659440891,-500.0,0.00021917,6]
[346047199,1734659440901,-500.0,0.00021917,6]
[346047200,1734659440911,-502.07966189,0.00021917,6]
[346047203,1734659440921,-749.85,0.00021917,6]
[346047205,1734659440931,-500.0,0.00021917,6]
[346047206,1734659440942,-500.0,0.00021917,6]
[346047209,1734659440952,-500.0,0.00021917,6]
[346047211,1734659440962,-500.0,0.00021917,6]
[346047213,1734659440971,-500.0,0.00021917,6]
[346047215,1734659440980,-500.0,0.00021917,6]
[346047217,1734659440990,-500.0,0.00021917,6]
[346047219,1734659441001,-500.0,0.00021917,6]
[346047221,1734659441010,-500.0,0.00021917,6]
[346047223,1734659441019,-503.5386781,0.00021917,6]
[346047225,1734659441029,-500.0,0.00021917,6]
[346047227,1734659441038,-504.95460782,0.00021917,6]
[346047229,1734659441047,-500.0,0.00021917,6]
[346047231,1734659441056,-500.0,0.00021917,6]
[346047233,1734659441066,-500.0,0.00021917,6]
[346047235,1734659441075,-500.0,0.00021917,6]
[346047237,1734659441084,-1178.0,0.00021917,6]
[346047239,1734659441093,-500.0,0.00021917,6]
[346047241,1734659441102,-500.0,0.00021917,6]
[346047243,1734659441111,-500.0,0.00021917,6]
[346047245,1734659441120,-592.68,0.00021917,6]
[346047247,1734659441129,-500.0,0.00021917,6]
[346047249,1734659441138,-505.05835562,0.00021917,6]
[346047251,1734659441147,-500.0,0.00021917,6]
[346047253,1734659441158,-500.0,0.00021917,6]
[346047255,1734659441167,-506.17862175,0.00021917,6]
[346047257,1734659441176,-553.9,0.00021917,6]
[346047259,1734659441185,-187.9698581,0.00021917,6]
[346047261,1734659441195,-500.0,0.00021917,6]
[346047263,1734659441204,-500.81461571,0.00021917,6]
[346047265,1734659441213,-500.0,0.00021917,6]
[346047267,1734659441223,-656.97,0.00021917,6]
[346047269,1734659441232,-1000.0,0.00021917,2]
[346047271,1734659441242,-1255.35,0.00021917,7]
[346047273,1734659441251,-820.22,0.00021917,6]
[346047275,1734659441260,-500.0,0.00021917,6]
[346047277,1734659441270,-500.0,0.00021917,6]
[346047279,1734659441280,-151.0,0.00021917,2]
[346047281,1734659441290,-500.0,0.00021917,6]
[346047283,1734659441305,-230.955528,0.00021917,2]
[346047285,1734659441315,-500.0,0.00021917,6]
[346047287,1734659441324,-500.0,0.00021917,6]
[346047289,1734659441334,-504.84199867,0.00021917,6]
[346047291,1734659441343,-500.0,0.00021917,6]
[346047293,1734659441354,-500.0,0.00021917,6]
[346047296,1734659441364,-554.54044589,0.00021917,6]
[346047298,1734659441374,-2474.73,0.00021917,6]
[346047300,1734659441383,-500.0,0.00021917,6]
[346047302,1734659441392,-841.07,0.00021917,6]
[346047304,1734659441401,-506.20202535,0.00021917,6]
[346047306,1734659441413,-504.90003158,0.00021917,6]
[346047308,1734659441423,-879.421972,0.00021917,2]
[346047310,1734659441432,-879.421972,0.00021917,2]
[346047312,1734659441441,-879.421972,0.00021917,2]
[346047313,1734659441451,-879.421972,0.00021917,2]
[346047316,1734659441460,-879.421972,0.00021917,2]
[346047318,1734659441470,-879.421972,0.00021917,2]
[346047320,1734659441480,-879.421972,0.00021917,2]
[346047322,1734659441490,-879.421972,0.00021917,2]
[346047324,1734659441499,-879.421972,0.00021917,2]
[346047326,1734659441508,-879.421972,0.00021917,2]
[346047328,1734659441518,-879.421972,0.00021917,2]
[346047330,1734659441527,-879.421972,0.00021917,2]
[346047332,1734659441536,-500.0,0.00021917,6]
[346047334,1734659441546,-879.421972,0.00021917,2]
[346047336,1734659441555,-500.0,0.00021917,6]
[346047338,1734659441565,-879.421972,0.00021917,2]
[346047340,1734659441574,-500.0,0.00021917,6]
[346047342,1734659441584,-879.421972,0.00021917,2]
[346047344,1734659441593,-879.421972,0.00021917,2]
[346047346,1734659441602,-879.421972,0.00021917,2]
[346047348,1734659441612,-879.421972,0.00021917,2]
[346047350,1734659441621,-500.0,0.00021917,6]
[346047352,1734659441630,-879.421972,0.00021917,2]
[346047354,1734659441640,-879.421963,0.00021917,2]
[346047356,1734659441649,-500.0,0.00021917,6]
[346047358,1734659441660,-500.0,0.00021917,6]
[346047360,1734659441670,-500.0,0.00021917,6]
[346047362,1734659441679,-500.0,0.00021917,6]
[346047364,1734659441689,-168.0,0.00021917,6]
[346047366,1734659441698,-500.0,0.00021917,6]
[346047368,1734659441708,-500.0,0.00021917,6]
[346047370,1734659441717,-503.55124131,0.00021917,6]
[346047372,1734659441727,-500.0,0.00021917,6]
[346047374,1734659441736,-500.0,0.00021917,6]
[346047376,1734659441745,-500.0,0.00021917,6]
[346047378,1734659441755,-1266.77,0.00021917,6]
[346047380,1734659441765,-500.0,0.00021917,6]
[346047382,1734659441774,-500.0,0.00021917,6]
[346047384,1734659441783,-627.89,0.00021917,6]
[346047386,1734659441792,-502.58686925,0.00021917,6]
[346047388,1734659441802,-500.0,0.00021917,6]
[346047390,1734659441812,-500.0,0.00021917,6]
[346047392,1734659441822,-151.0,0.00021917,2]
[346047394,1734659441832,-151.0,0.00021917,2]
[346047396,1734659441841,-500.0,0.00021917,6]
[346047398,1734659441850,-151.0,0.00021917,2]
[346047400,1734659441859,-151.0,0.00021917,2]
[346047403,1734659441869,-500.0,0.00021917,6]
[346047404,1734659441878,-500.0,0.00021917,6]
[346047406,1734659441887,-151.0,0.00021917,2]
[346047408,1734659441897,-151.0,0.00021917,2]
[346047411,1734659441906,-151.0,0.00021917,2]
[346047413,1734659441918,-151.0,0.00021917,2]
[346047415,1734659441929,-151.0,0.00021917,2]
[346047417,1734659441939,-208.025931,0.00021917,2]
[346047419,1734659441948,-533.82710058,0.00021917,6]
[346047421,1734659441958,-500.0,0.00021917,6]
[346047423,1734659441967,-500.0,0.00021917,6]
[346047425,1734659441976,-500.0,0.00021917,6]
[346047427,1734659441985,-516.76988594,0.00021917,6]
[346047429,1734659441994,-500.0,0.00021917,6]
[346047431,1734659442003,-500.0,0.00021917,2]
[346047433,1734659442012,-500.0,0.00021917,6]
[346047435,1734659442022,-500.0,0.00021917,6]
[346047437,1734659442031,-500.0,0.00021917,6]
[346047439,1734659442041,-500.0,0.00021917,6]
[346047441,1734659442051,-500.0,0.00021917,6]
[346047443,1734659442061,-500.0,0.00021917,6]
[346047445,1734659442070,-151.0,0.00021917,2]
[346047447,1734659442079,-500.0,0.00021917,6]
[346047449,1734659442089,-151.0,0.00021917,2]
[346047451,1734659442098,-151.0,0.00021917,2]
[346047453,1734659442107,-156.683705,0.00021917,2]
[346047455,1734659442117,-153.214947,0.00021917,2]
[346047457,1734659442126,-500.0,0.00021917,6]
[346047459,1734659442136,-500.0,0.00021917,6]
[346047461,1734659442145,-5467.11,0.00021917,2]
[346047463,1734659442154,-500.0,0.00021917,6]
[346047465,1734659442168,-500.0,0.00021917,6]
[346047467,1734659442177,-501.7511429,0.00021917,6]
[346047469,1734659442186,-1232.73,0.00021917,6]
[346047471,1734659442195,-500.0,0.00021917,6]
[346047473,1734659442205,-500.0,0.00021917,6]
[346047475,1734659442214,-508.29,0.00021917,6]
[346047477,1734659442223,-500.0,0.00021917,6]
[346047479,1734659442233,-500.0,0.00021917,6]
[346047481,1734659442242,-500.0,0.00021917,6]
[346047483,1734659442251,-500.0,0.00021917,6]
[346047485,1734659442260,-500.0,0.00021917,6]
[346047487,1734659442269,-500.0,0.00021917,6]
[346047489,1734659442278,-501.78349049,0.00021917,6]
[346047491,1734659442287,-792.85,0.00021917,6]
[346047493,1734659442297,-1768.85,0.00021917,6]
[346047495,1734659442309,-500.0,0.00021917,6]
[346047497,1734659442318,-500.0,0.00021917,6]
[346047499,1734659442327,-1115.14,0.00021917,6]
[346047501,1734659442336,-500.0,0.00021917,6]
[346047503,1734659442346,-500.0,0.00021917,6]
[346047505,1734659442356,-500.0,0.00021917,6]
[346047507,1734659442365,-1347.11,0.00021917,6]
[346047509,1734659442374,-500.0,0.00021917,6]
[346047511,1734659442384,-500.0,0.00021917,6]
[346047513,1734659442393,-500.0,0.00021917,6]
[346047515,1734659442402,-1812.05,0.00021917,6]
[346047517,1734659442414,-1047.23,0.00021917,6]
[346047519,1734659442423,-500.0,0.00021917,6]
[346047521,1734659442432,-500.0,0.00021917,6]
[346047523,1734659442441,-500.0,0.00021917,6]
[346047525,1734659442450,-500.0,0.00021917,6]
[346047527,1734659442459,-500.0,0.00021917,6]
[346047529,1734659442470,-1992.6,0.00021917,6]
[346047531,1734659442479,-726.06,0.00021917,6]
[346047533,1734659442488,-1106.16,0.00021917,6]
[346047535,1734659442497,-500.0,0.00021917,6]
[346047537,1734659442507,-500.0,0.00021917,6]
[346047540,1734659442516,-577.78,0.00021917,6]
[346047542,1734659442526,-500.0,0.00021917,6]
[346047544,1734659442536,-539.95,0.00021917,6]
[346047546,1734659442546,-500.0,0.00021917,6]
[346047548,1734659442556,-500.0,0.00021917,6]
[346047549,1734659442565,-500.0,0.00021917,6]
[346047552,1734659442575,-500.0,0.00021917,6]
[346047553,1734659442584,-520.1,0.00021917,6]
[346047556,1734659442593,-500.0,0.00021917,6]
[346047558,1734659442603,-500.0,0.00021917,6]
[346047559,1734659442611,-153.95732849,0.00021917,6]
[346047561,1734659442621,-500.0,0.00021917,6]
[346047563,1734659442630,-1306.83,0.00021917,6]
[346047566,1734659442639,-500.0,0.00021917,6]
[346047567,1734659442649,-500.0,0.00021917,6]
[346047570,1734659442659,-618.39,0.00021917,6]
[346047572,1734659442668,-500.0,0.00021917,6]
[346047574,1734659442677,-692.59,0.00021917,6]
[346047575,1734659442687,-1649.6,0.00021917,6]
[346047578,1734659442696,-500.0,0.00021917,6]
[346047580,1734659442705,-500.0,0.00021917,6]
[346047582,1734659442715,-500.0,0.00021917,6]
[346047584,1734659442724,-500.0,0.00021917,6]
[346047586,1734659442733,-10000.0,0.00021917,5]
[346047587,1734659442743,-500.0,0.00021917,6]
[346047590,1734659442752,-500.0,0.00021917,6]
[346047591,1734659442762,-1417.68,0.00021917,6]
[346047594,1734659442771,-500.0,0.00021917,6]
[346047595,1734659442780,-500.0,0.00021917,6]
[346047597,1734659442790,-500.0,0.00021917,6]
[346047600,1734659442799,-550.3,0.00021917,6]
[346047601,1734659442809,-500.0,0.00021917,6]
[346047603,1734659442818,-504.87687982,0.00021917,6]
[346047606,1734659442827,-1486.63,0.00021917,6]
[346047608,1734659442836,-504.10786032,0.00021917,6]
[346047609,1734659442845,-946.92,0.00021917,6]
[346047612,1734659442855,-500.0,0.00021917,6]
[346047613,1734659442864,-500.0,0.00021917,6]
[346047615,1734659442873,-248.96014247,0.00021917,6]
[346047617,1734659442883,-516.22,0.00021917,6]
[346047619,1734659442892,-500.0,0.00021917,6]
[346047621,1734659442901,-500.0,0.00021917,6]
[346047624,1734659442912,-149.99,0.00021917,6]
[346047625,1734659442921,-150.86335012,0.00021917,6]
[346047627,1734659442931,-500.0,0.00021917,6]
[346047629,1734659442940,-500.0,0.00021917,6]
[346047632,1734659442949,-149.99,0.00021917,6]
[346047634,1734659442959,-149.99,0.00021917,6]
[346047636,1734659442968,-1334.26,0.00021917,6]
[346047638,1734659442977,-500.0,0.00021917,6]
[346047640,1734659442986,-500.0,0.00021917,6]
[346047642,1734659442995,-1704.11,0.00021917,6]
[346047644,1734659443005,-500.0,0.00021917,6]
[346047646,1734659443014,-500.0,0.00021917,6]
[346047649,1734659443023,-502.63,0.00021917,6]
[346047652,1734659443032,-500.0,0.00021917,6]
[346047654,1734659443043,-548.04,0.00021917,6]
[346047656,1734659443052,-500.0,0.00021917,6]
[346047658,1734659443060,-767.15,0.00021917,6]
[346047660,1734659443069,-1626.19,0.00021917,6]
[346047662,1734659443079,-500.0,0.00021917,6]
[346047664,1734659443088,-500.0,0.00021917,6]
[346047665,1734659443097,-500.0,0.00021917,6]
[346047668,1734659443107,-500.0,0.00021917,6]
[346047669,1734659443115,-500.0,0.00021917,6]
[346047672,1734659443125,-502.02668584,0.00021917,6]
[346047674,1734659443134,-500.0,0.00021917,6]
[346047676,1734659443144,-500.0,0.00021917,6]
[346047677,1734659443154,-500.0,0.00021917,6]
[346047680,1734659443166,-500.0,0.00021917,6]
[346047681,1734659443175,-500.0,0.00021917,6]
[346047684,1734659443184,-500.0,0.00021917,6]
[346047686,1734659443194,-500.0,0.00021917,6]
[346047688,1734659443203,-151.0,0.00021917,2]
[346047690,1734659443212,-792.0,0.00021917,6]
[346047691,1734659443222,-151.0,0.00021917,2]
[346047713,1734659443386,-151.0,0.00021917,2]
[346047715,1734659443397,-500.0,0.00021917,6]
[346047717,1734659443410,-151.0,0.00021917,2]
[346047719,1734659443419,-165.686929,0.00021917,2]
[346047721,1734659443429,-500.0,0.00021917,6]
[346047722,1734659443439,-970.0,0.00021917,2]
[346047725,1734659443448,-970.0,0.00021917,2]
[346047726,1734659443457,-970.0,0.00021917,2]
[346047728,1734659443466,-509.02,0.00021917,6]
[346047731,1734659443476,-970.0,0.00021917,2]
[346047733,1734659443485,-970.0,0.00021917,2]
[346047734,1734659443495,-970.0,0.00021917,2]
[346047737,1734659443504,-502.15129123,0.00021917,6]
[346047738,1734659443513,-970.0,0.00021917,2]
[346047740,1734659443522,-235.114312,0.00021917,2]
[346047742,1734659443532,-500.0,0.00021917,2]
[346047744,1734659443541,-500.0,0.00021917,6]
[346047746,1734659443551,-2479.7,0.00021917,6]
[346047749,1734659443561,-500.0,0.00021917,6]
[346047751,1734659443570,-563.84,0.00021917,6]
[346047752,1734659443579,-500.0,0.00021917,6]
[346047753,1734659443588,-500.0,0.00021917,6]
[346047754,1734659443598,-500.0,0.00021917,6]
[346047755,1734659443607,-500.0,0.00021917,6]
[346047756,1734659443616,-500.0,0.00021917,6]
[346047757,1734659443626,-500.0,0.00021917,6]
[346047758,1734659443635,-2833.64,0.00021917,6]
[346047759,1734659443645,-500.0,0.00021917,6]
[346047760,1734659443654,-2255.87,0.00021917,6]
[346047761,1734659443665,-500.0,0.00021917,6]
[346047762,1734659443675,-767.78,0.00021917,6]